fUSD/lending_fUSD_20250606
["ID","MTS","AMOUNT","RATE_DAILY","PERIOD"]
[364813865,1749249073044,-1249.34,0.00028712,5]
[364813866,1749249073054,-2825.94,0.00028712,5]
[364813867,1749249073064,-1324.83,0.00028712,5]
[364813868,1749249073074,-519.06,0.00028712,5]
[364813869,1749249073084,-876.83,0.00028712,5]
[364813870,1749249073094,-9134.21,0.00028712,5]
[364813871,1749249073104,-480.0,0.00028712,5]
[364813872,1749249073114,-530.99,0.00028712,5]
[364813873,1749249073124,-13397.65,0.00028712,5]
[364813874,1749249073135,-753.87,0.00028712,5]
[364813875,1749249073144,-494.07,0.00028712,5]
[364813876,1749249073154,-489.37,0.00028712,5]
[364813877,1749249073164,-1086.28,0.00028712,5]
[364813878,1749249073175,-550.68,0.00028712,5]
[364813879,1749249073184,-480.0,0.00028712,5]
[364813880,1749249073194,-5872.23,0.00028712,5]
[364813881,1749249073204,-1297.03,0.00028712,5]
[364813882,1749249073215,-480.0,0.00028712,5]
[364813883,1749249073226,-1434.25,0.00028712,5]
[364813884,1749249073236,-805.27,0.00028712,5]
[364813885,1749249073246,-480.0,0.00028712,5]
[364813886,1749249073255,-1698.93,0.00028712,5]
[364813887,1749249073265,-1071.02,0.00028712,5]
[364813888,1749249073275,-480.0,0.00028712,5]
[364813889,1749249073285,-10035.0,0.00028712,5]
[364813890,1749249073294,-1364.04,0.00028712,5]
[364813891,1749249073304,-2768.53,0.00028712,5]
[364813892,1749249073313,-601.16,0.00028712,5]
[364813893,1749249073323,-151.0,0.00028712,7]
[364813894,1749249073333,-1472.37,0.00028712,5]
[364813895,1749249073342,-3042.72,0.00028712,5]
[364813896,1749249073351,-3370.61,0.00028712,5]
[364813897,1749249073361,-480.0,0.00028712,5]
[364813898,1749249073371,-480.0,0.00028712,5]
[364813899,1749249073381,-489.54,0.00028712,5]
[364813900,1749249073392,-480.0,0.00028712,5]
[364813901,1749249073402,-517.23,0.00028712,5]
[364813902,1749249073412,-1392.9,0.00028712,5]
[364813903,1749249073422,-793.54,0.00028712,5]
[364813904,1749249073431,-480.0,0.00028712,5]
[364813905,1749249073441,-367.21893269,0.00028712,5]
[364813906,1749249073451,-480.0,0.00028712,5]
[364813907,1749249073461,-658.0,0.00028712,5]
[364813908,1749249073472,-549.97,0.00028712,5]
[364813909,1749249073484,-2962.92,0.00028712,5]
[364813910,1749249073495,-682.01,0.00028712,5]
[364813911,1749249073506,-480.0,0.00028712,5]
[364813912,1749249073516,-1377.03,0.00028712,5]
[364813913,1749249073526,-1477.44,0.00028712,5]
[364813914,1749249073539,-1388.75,0.00028712,5]
[364813915,1749249073550,-532.97,0.00028712,5]
[364813916,1749249073561,-832.53,0.00028712,5]
[364813917,1749249073571,-164.98347769,0.00028712,5]
[364813918,1749249073581,-480.0,0.00028712,5]
[364813919,1749249073591,-1207.13,0.00028712,5]
[364813920,1749249073601,-4118.2,0.00028712,5]
[364813921,1749249073611,-956.85,0.00028712,5]
[364813922,1749249073622,-480.0,0.00028712,5]
[364813923,1749249073633,-2445.82,0.00028712,5]
[364813924,1749249073643,-1102.03,0.00028712,5]
[364813925,1749249073653,-1097.1,0.00028712,5]
[364813926,1749249073663,-480.0,0.00028712,5]
[364813927,1749249073674,-3539.2,0.00028712,5]
[364813928,1749249073685,-480.0,0.00028712,5]
[364813929,1749249073696,-1807.67,0.00028712,5]
[364813930,1749249073706,-804.07,0.00028712,5]
[364813931,1749249073718,-2612.22,0.00028712,5]
[364813932,1749249073728,-889.55,0.00028712,5]
[364813933,1749249073739,-480.0,0.00028712,5]
[364813934,1749249073749,-480.0,0.00028712,5]
[364813935,1749249073759,-480.7,0.00028712,5]
[364813936,1749249073770,-545.98,0.00028712,5]
[364813937,1749249073780,-2341.98,0.00028712,5]
[364813938,1749249073791,-569.07,0.00028712,5]
[364813939,1749249073801,-3098.06233075,0.00028712,5]
[364813940,1749249074291,-153.0,0.00027351,2]
[364813941,1749249074302,-153.0,0.00027351,2]
[364813942,1749249074312,-480.0,0.00027397,5]
[364813943,1749249074322,-480.0,0.00027397,5]
[364813944,1749249074332,-480.0,0.00027397,5]
[364813945,1749249074342,-480.0,0.00027397,5]
[364813946,1749249074352,-480.0,0.00027561,5]
[364813947,1749249074361,-480.0,0.00027561,5]
[364813948,1749249074372,-480.0,0.00027561,5]
[364813949,1749249074381,-480.0,0.00027561,5]
[364813950,1749249074392,-480.0,0.00027726,5]
[364813951,1749249074402,-480.0,0.00027726,5]
[364813952,1749249074412,-480.0,0.00027726,5]
[364813953,1749249074422,-480.0,0.0002789,5]
[364813954,1749249074432,-480.0,0.0002789,5]
[364813955,1749249074442,-480.0,0.0002789,5]
[364813956,1749249074452,-480.0,0.0002789,5]
[364813957,1749249074462,-480.0,0.0002789,5]
[364813958,1749249074473,-480.0,0.00028054,5]
[364813959,1749249074482,-480.0,0.00028054,5]
[364813960,1749249074492,-480.0,0.00028054,5]
[364813961,1749249074501,-248.166081,0.000282,7]
[364813962,1749249074511,-599.55,0.00028219,5]
[364813963,1749249074521,-480.0,0.00028219,5]
[364813964,1749249074532,-480.0,0.00028219,5]
[364813965,1749249074547,-7017.0,0.00028225,2]
[364813966,1749249074557,-423.49,0.00028383,5]
[364813967,1749249074567,-480.0,0.00028383,5]
[364813968,1749249074577,-480.0,0.00028547,5]
[364813969,1749249074588,-905.57766925,0.00028712,5]
[364813970,1749249074598,-5914.05,0.00028712,5]
[364813971,1749249074607,-480.0,0.00028712,2]
[364813972,1749249074616,-1337.49,0.00028712,5]
[364813973,1749249074626,-829.99,0.00028712,5]
[364813974,1749249074636,-1525.61,0.00028712,5]
[364813975,1749249074646,-770.94,0.00028712,5]
[364813976,1749249074655,-480.0,0.00028712,2]
[364813977,1749249074666,-794.19,0.00028712,5]
[364813978,1749249074676,-2791.74,0.00028712,5]
[364813979,1749249074686,-850.62,0.00028712,5]
[364813980,1749249074696,-1521.49,0.00028712,5]
[364813981,1749249074706,-620.14,0.00028712,5]
[364813982,1749249074715,-1313.26,0.00028712,5]
[364813983,1749249074725,-1463.557598,0.00028712,7]
[364813984,1749249074735,-812.48,0.00028712,5]
[364813985,1749249074744,-1463.557598,0.00028712,7]
[364813986,1749249074754,-682.0,0.00028712,5]
[364813987,1749249074764,-555.67,0.00028712,5]
[364813988,1749249074774,-480.0,0.00028712,5]
[364813989,1749249074785,-1027.0,0.00028712,5]
[364813990,1749249074794,-879.45,0.00028712,5]
[364813991,1749249074804,-1454.01,0.00028712,5]
[364813992,1749249074814,-248.166081,0.00028712,7]
[364813993,1749249074823,-248.166081,0.00028712,7]
[364813994,1749249074833,-480.0,0.00028712,5]
[364813995,1749249074843,-150.0,0.00028713,7]
[364813996,1749249074852,-150.0,0.00028714,2]
[364813997,1749249074862,-150.0,0.00028719,2]
[364813998,1749249074873,-228.71897116,0.00028724,7]
[364813999,1749249074883,-292.04268761,0.00028724,7]
[364814000,1749249074892,-150.0,0.00028729,2]
[364814001,1749249074902,-150.0,0.00028735,2]
[364814002,1749249074912,-170.57,0.00028737,2]
[364814003,1749249074922,-170.57,0.00028737,2]
[364814004,1749249074932,-170.57,0.00028737,2]
[364814005,1749249074942,-170.57,0.00028737,2]
[364814006,1749249074951,-170.57,0.00028737,2]
[364814007,1749249074961,-151.0,0.00028737,7]
[364814008,1749249074972,-151.0,0.00028737,7]
[364814009,1749249074982,-151.0,0.00028737,7]
[364814010,1749249074995,-151.0,0.00028737,7]
[364814011,1749249075006,-151.0,0.00028737,7]
[364814012,1749249075016,-209.775402,0.00028737,7]
[364814013,1749249075026,-209.775402,0.00028737,7]
[364814014,1749249075036,-958.11686447,0.0002874,30]
[364814015,1749249075047,-1000.0,0.00028745,2]
[364814016,1749249075056,-150.0,0.00028745,2]
[364814017,1749249075066,-150.0,0.0002875,7]
[364814018,1749249075076,-150.0,0.00028752,7]
[364814019,1749249075087,-228.71897116,0.00028756,7]
[364814020,1749249075098,-292.04268761,0.00028756,7]
[364814021,1749249075108,-150.0,0.00028756,7]
[364814022,1749249075118,-150.0,0.0002876,7]
[364814023,1749249075128,-150.0,0.00028762,2]
[364814024,1749249075138,-1268.9,0.00028767,2]
[364814025,1749249075148,-200.0,0.00028768,2]
[364814026,1749249075158,-161.01590369,0.00028776,2]
[364814027,1749249075168,-2068.102,0.0002878,20]
[364814028,1749249075177,-187.485,0.0002878,20]
[364814029,1749249075187,-150.0,0.00028782,7]
[364814030,1749249075197,-228.71897116,0.00028788,7]
[364814031,1749249075207,-292.04268761,0.00028788,7]
[364814032,1749249075217,-200.0,0.00028788,2]
[364814033,1749249075226,-200.0,0.00028789,2]
[364814034,1749249075236,-150.0,0.0002879,7]
[364814035,1749249075246,-150.0,0.00028798,2]
[364814036,1749249075256,-150.0,0.00028799,7]
[364814037,1749249075266,-200.0,0.00028808,2]
[364814038,1749249075276,-150.0,0.00028814,2]
[364814039,1749249075286,-150.0,0.00028814,7]
[364814040,1749249075296,-228.71897116,0.0002882,7]
[364814041,1749249075306,-292.04268761,0.0002882,7]
[364814042,1749249075316,-150.0,0.00028827,2]
[364814043,1749249075326,-150.0,0.00028831,2]
[364814044,1749249075338,-150.0,0.00028831,7]
[364814045,1749249075348,-150.0,0.00028836,2]
[364814046,1749249075358,-150.0,0.00028842,7]
[364814047,1749249075367,-958.11686447,0.00028849,30]
[364814048,1749249075377,-150.0,0.0002885,2]
[364814049,1749249075387,-150.0,0.0002885,2]
[364814050,1749249075398,-228.71897116,0.00028852,7]
[364814051,1749249075407,-292.04268761,0.00028852,7]
[364814052,1749249075417,-150.0,0.00028854,7]
[364814053,1749249075427,-150.0,0.00028855,2]
[364814054,1749249075436,-150.0,0.0002886,7]
[364814055,1749249075445,-150.0,0.00028872,7]
[364814056,1749249075455,-150.0,0.00028872,2]
[364814057,1749249075465,-151.0,0.00028876,7]
[364814058,1749249075475,-480.0,0.00028876,5]
[364814059,1749249075485,-151.0,0.00028876,7]
[364814060,1749249075495,-480.0,0.00028876,5]
[364814061,1749249075506,-1776.363986,0.00028876,7]
[364814062,1749249075519,-1776.363986,0.00028876,7]
[364814063,1749249075528,-290.005044,0.00028876,7]
[364814064,1749249075541,-290.005044,0.00028876,7]
[364814065,1749249075552,-480.0,0.00028876,5]
[364814066,1749249075561,-480.0,0.00028876,5]
[364814067,1749249075571,-480.0,0.00028876,5]
[364814068,1749249075580,-512.9,0.00028876,5]
[364814069,1749249075591,-285.324647,0.00028876,7]
[364814070,1749249075601,-480.0,0.00028876,5]
[364814071,1749249075610,-285.324647,0.00028876,7]
[364814072,1749249075620,-480.0,0.00028876,5]
[364814073,1749249075629,-480.0,0.00028876,5]
[364814074,1749249075639,-480.0,0.00028876,5]
[364814075,1749249075648,-529.84,0.00028876,5]
[364814076,1749249075658,-480.0,0.00028876,5]
[364814077,1749249075667,-500.0,0.00028876,5]
[364814078,1749249075677,-500.0,0.00028876,5]
[364814079,1749249075687,-480.0,0.00028876,5]
[364814080,1749249075989,-480.0,0.00028876,5]
[364814081,1749249076001,-500.0,0.00028876,5]
[364814082,1749249076011,-150.0,0.00028876,5]
[364814083,1749249076021,-1229.494943,0.00028876,7]
[364814084,1749249076031,-500.0,0.00028876,5]
[364814085,1749249076041,-606.23,0.00028876,5]
[364814086,1749249076051,-1229.494943,0.00028876,7]
[364814087,1749249076062,-480.0,0.00028876,5]
[364814088,1749249076071,-500.0,0.00028876,5]
[364814089,1749249076081,-500.0,0.00028876,5]
[364814090,1749249076091,-347.392354,0.00028876,7]
[364814091,1749249076100,-677.96,0.00028876,5]
[364814092,1749249076109,-500.0,0.00028876,5]
[364814093,1749249076119,-347.392354,0.00028876,7]
[364814094,1749249076128,-480.0,0.00028876,5]
[364814095,1749249076137,-150.0,0.00028876,5]
[364814096,1749249076147,-150.0,0.00028876,5]
[364814097,1749249076156,-480.0,0.00028876,5]
[364814098,1749249076166,-500.0,0.00028876,5]
[364814099,1749249076175,-480.0,0.00028876,5]
[364814100,1749249076185,-830.71,0.00028876,5]
[364814101,1749249076195,-480.0,0.00028876,5]
[364814102,1749249076204,-480.0,0.00028876,5]
[364814103,1749249076214,-500.0,0.00028876,5]
[364814104,1749249076224,-500.0,0.00028876,5]
[364814105,1749249076234,-710.66,0.00028876,5]
[364814106,1749249076244,-480.0,0.00028876,5]
[364814107,1749249076254,-500.0,0.00028876,5]
[364814108,1749249076264,-480.0,0.00028876,5]
[364814109,1749249076273,-151.0,0.00028876,7]
[364814110,1749249076284,-559.5,0.00028876,5]
[364814111,1749249076294,-480.0,0.00028876,5]
[364814112,1749249076303,-480.0,0.00028876,5]
[364814113,1749249076314,-480.0,0.00028876,5]
[364814114,1749249076323,-549.49,0.00028876,5]
[364814115,1749249076335,-1076.21,0.00028876,5]
[364814116,1749249076344,-480.0,0.00028876,5]
[364814117,1749249076354,-480.0,0.00028876,5]
[364814118,1749249076363,-527.39,0.00028876,5]
[364814119,1749249076373,-480.0,0.00028876,5]
[364814120,1749249076382,-480.0,0.00028876,5]
[364814121,1749249076392,-515.2826118,0.00028876,5]
[364814122,1749249076402,-555.9,0.00028876,5]
[364814123,1749249076411,-655.43,0.00028876,5]
[364814124,1749249076421,-480.0,0.00028876,5]
[364814125,1749249076430,-1040.33,0.00028876,5]
[364814126,1749249076440,-480.0,0.00028876,5]
[364814127,1749249076449,-1325.760447,0.00028876,7]
[364814128,1749249076461,-480.0,0.00028876,5]
[364814129,1749249076471,-1325.760447,0.00028876,7]
[364814130,1749249076480,-480.0,0.00028876,5]
[364814131,1749249076490,-151.0,0.00028876,7]
[364814132,1749249076499,-480.0,0.00028876,5]
[364814133,1749249076510,-151.0,0.00028876,7]
[364814134,1749249076520,-480.0,0.00028876,5]
[364814135,1749249076530,-556.96,0.00028876,5]
[364814136,1749249076546,-499.5,0.00028876,5]
[364814137,1749249076556,-539.01,0.00028876,5]
[364814138,1749249076567,-913.42,0.00028876,5]
[364814139,1749249076580,-151.0,0.00028876,7]
[364814140,1749249076590,-573.44,0.00028876,5]
[364814141,1749249076601,-602.23,0.00028876,5]
[364814142,1749249076612,-151.0,0.00028876,7]
[364814143,1749249076622,-553.04,0.00028876,5]
[364814144,1749249076631,-151.0,0.00028876,7]
[364814145,1749249076642,-567.5,0.00028876,5]
[364814146,1749249076652,-151.0,0.00028876,7]
[364814147,1749249076662,-480.0,0.00028876,5]
[364814148,1749249076673,-480.0,0.00028876,5]
[364814149,1749249076683,-480.0,0.00028876,5]
[364814150,1749249076693,-151.0,0.00028876,7]
[364814151,1749249076703,-502.06,0.00028876,5]
[364814152,1749249076713,-151.0,0.00028876,7]
[364814153,1749249076723,-480.0,0.00028876,5]
[364814154,1749249076732,-480.0,0.00028876,5]
[364814155,1749249076743,-846.78,0.00028876,5]
[364814156,1749249076752,-185.918793,0.00028876,7]
[364814157,1749249076762,-480.0,0.00028876,5]
[364814158,1749249076771,-516.88,0.00028876,5]
[364814159,1749249076781,-185.918793,0.00028876,7]
[364814160,1749249076790,-703.63,0.00028876,5]
[364814161,1749249076800,-480.0,0.00028876,5]
[364814162,1749249076810,-491.95,0.00028876,5]
[364814163,1749249076819,-1302.12,0.00028876,5]
[364814164,1749249076828,-480.0,0.00028876,5]
[364814165,1749249076838,-480.0,0.00028876,5]
[364814166,1749249076847,-503.98,0.00028876,5]
[364814167,1749249076857,-480.0,0.00028876,5]
[364814168,1749249076866,-480.0,0.00028876,5]
[364814169,1749249076875,-41603.54,0.00028876,5]
[364814170,1749249076885,-1007.79,0.00028876,5]
[364814171,1749249076895,-2220.64,0.00028876,5]
[364814172,1749249076904,-1000.0,0.00028876,2]
[364814173,1749249076913,-480.0,0.00028876,5]
[364814174,1749249076923,-5394.96,0.00028876,5]
[364814175,1749249076933,-650.68,0.00028876,5]
[364814176,1749249076942,-1252.94,0.00028876,5]
[364814177,1749249076952,-839.78,0.00028876,5]
[364814178,1749249076961,-597.47,0.00028876,5]
[364814179,1749249076973,-2287.47,0.00028876,5]
[364814180,1749249076983,-284.325777,0.00028876,7]
[364814181,1749249076993,-284.325777,0.00028876,7]
[364814182,1749249077002,-776.7,0.00028876,5]
[364814183,1749249077012,-1339.2,0.00028876,5]
[364814184,1749249077023,-1133.55,0.00028876,5]
[364814185,1749249077032,-560.8,0.00028876,5]
[364814186,1749249077042,-634.45,0.00028876,5]
[364814187,1749249077051,-2020.92,0.00028876,5]
[364814188,1749249077061,-955.86,0.00028876,5]
[364814189,1749249077070,-480.0,0.00028876,5]
[364814190,1749249077079,-2484.76,0.00028876,5]
[364814191,1749249077089,-751.76,0.00028876,5]
[364814192,1749249077099,-1476.09,0.00028876,5]
[364814193,1749249077108,-500.0,0.00028876,2]
[364814194,1749249077118,-1062.3,0.00028876,5]
[364814195,1749249077128,-684.25,0.00028876,5]
[364814196,1749249077138,-1006.98,0.00028876,5]
[364814197,1749249077147,-500.0,0.00028876,5]
[364814198,1749249077157,-644.85,0.00028876,5]
[364814199,1749249077167,-150.0,0.00028876,5]
[364814200,1749249077178,-500.0,0.00028876,2]
[364814201,1749249077187,-500.0,0.00028876,5]
[364814202,1749249077198,-150.0,0.00028876,2]
[364814203,1749249077207,-747.15,0.00028876,5]
[364814204,1749249077220,-480.0,0.00028876,5]
[364814205,1749249077230,-500.0,0.00028876,5]
[364814206,1749249077240,-2561.95,0.00028876,5]
[364814207,1749249077249,-1743.0,0.00028876,5]
[364814208,1749249077259,-480.0,0.00028876,5]
[364814209,1749249077270,-1671.25,0.00028876,5]
[364814210,1749249077280,-9406.81,0.00028876,5]
[364814211,1749249077290,-480.0,0.00028876,5]
[364814212,1749249077300,-1049.08,0.00028876,5]
[364814213,1749249077310,-480.0,0.00028876,5]
[364814214,1749249077320,-996.12860679,0.00028876,5]
[364814215,1749249079328,207.22745318,0.0003561,120]
[364814219,1749249252927,500.0,0.00019,2]
[364814225,1749249427988,2690.043066,7.945e-05,2]
[364814226,1749249435591,252.59381128,0.0001,2]
[364814227,1749249462320,153.6,0.00033904,120]
[364814231,1749249595368,166.87,0.00013699,2]
[364814234,1749249652770,150.0,0.0003561,120]
[364814236,1749249669510,8671.41141529,0.00035616,120]
[364814237,1749249677923,250.0,0.00019,2]
[364814239,1749249713181,150.0,0.00034,120]
[364814240,1749249727983,200.0,0.00035616,120]
[364814241,1749249730003,150.0,0.00034,120]
[364814242,1749249749419,150.0,0.00031,120]
[364814244,1749249774903,150.0,0.00031,120]
[364814245,1749249823116,150.0,0.000261,120]
[364814247,1749249839091,150.0,0.00031,120]
[364814249,1749249852891,150.0,0.0003,120]
[364814251,1749249901983,150.0,0.00032,120]
[364814252,1749249914989,150.0,0.00033,120]
[364814282,1749250232309,-166.87,0.00020187,2]
[364814283,1749250232318,-183.13,0.00021999,2]
[364814284,1749250232330,-66.87,0.00021999,2]
[364814285,1749250232341,-389.9158882,0.00023607,2]
[364814286,1749250232353,-617.9141118,0.00023607,2]
[364814287,1749250232362,-144.26131037,0.00024932,7]
[364814288,1749250232409,-310.73868963,0.00024932,7]
[364814289,1749250232418,-455.0,0.00025,7]
[364814290,1749250232428,-455.0,0.00025205,7]
[364814291,1749250232438,-1000.0,0.00025368,2]
[364814292,1749250232448,-1000.0,0.0002538,2]
[364814293,1749250232458,-204.31,0.0002538,2]
[364814294,1749250232467,-150.0,0.00025387,2]
[364814295,1749250232477,-150.0,0.00025421,2]
[364814296,1749250232486,-150.0,0.00025442,2]
[364814297,1749250232495,-150.0,0.00025444,2]
[364814298,1749250232505,-455.0,0.00025479,7]
[364814299,1749250232515,-217.92,0.00025481,2]
[364814300,1749250232524,-150.0,0.00025527,2]
[364814301,1749250232535,-1000.0,0.00025548,2]
[364814302,1749250232544,-300.0,0.00025558,2]
[364814303,1749250232554,-1200.0,0.00025558,2]
[364814304,1749250232564,-7680.06079,0.00025559,2]
[364814305,1749250232573,-150.0,0.0002556,2]
[364814306,1749250232582,-1000.0,0.00025574,2]
[364814307,1749250232592,-150.0,0.00025704,2]
[364814308,1749250232602,-150.0,0.00025712,2]
[364814309,1749250232611,-150.0,0.00025733,2]
[364814310,1749250232620,-150.0,0.00025744,2]
[364814311,1749250232630,-455.0,0.00025753,7]
[364814312,1749250232639,-150.0,0.00025763,2]
[364814313,1749250232649,-150.0,0.00025831,7]
[364814314,1749250232658,-850.0,0.00025831,2]
[364814315,1749250232668,-206.0,0.00025855,2]
[364814316,1749250232677,-500.0,0.00025858,2]
[364814317,1749250232686,-1007.83,0.00025871,2]
[364814318,1749250232763,-23900.0,0.0002588,2]
[364814319,1749250232772,-455.0,0.0002589,7]
[364814320,1749250232782,-250.0,0.00025913,2]
[364814323,1749250232791,-188.9,0.00025943,2]
[364814325,1749250232800,-150.0,0.00025958,2]
[364814327,1749250232809,-150.0,0.00026042,2]
[364814329,1749250232819,-187.13,0.00026043,2]
[364814331,1749250232828,-150.0,0.00026067,2]
[364814333,1749250232837,-1421.08716241,0.00026211,2]
[364814335,1749250232847,-150.0,0.00026231,2]
[364814337,1749250232856,-353.79,0.00026322,2]
[364814339,1749250232865,-150.0,0.00026366,2]
[364814341,1749250232875,-150.0,0.00026379,2]
[364814343,1749250232885,-200.0,0.00026389,2]
[364814345,1749250232894,-150.0,0.00026395,2]
[364814347,1749250232903,-799.66,0.00026419,2]
[364814349,1749250232913,-217.92,0.00026436,2]
[364814351,1749250232922,-150.0,0.0002646,2]
[364814353,1749250232931,-150.0,0.00026594,2]
[364814355,1749250232940,-150.0,0.00026622,2]
[364814358,1749250232950,-15909.599607,0.00026664,2]
[364814360,1749250232962,-1133.24290978,0.00026664,2]
[364815113,1749250240217,-2386.50748322,0.00026664,2]
[364815115,1749250240226,-166.87,0.00026676,2]
[364815117,1749250240235,-150.0,0.00026747,2]
[364815119,1749250240244,-150.0,0.00026756,2]
[364815121,1749250240253,-525.59,0.00026831,2]
[364815123,1749250240267,-423.34,0.00026834,30]
[364815125,1749250240276,-1468.8922,0.00026881,2]
[364815127,1749250240285,-536.39910127,0.000269,16]
[364815129,1749250240295,-1000.0,0.00026933,2]
[364815131,1749250240306,-151.0,0.00026933,2]
[364815133,1749250240314,-500.0,0.00026933,2]
[364815135,1749250240323,-283.33,0.00026933,2]
[364815137,1749250240332,-151.0,0.00026933,2]
[364815139,1749250240343,-207.4,0.00026933,2]
[364815141,1749250240352,-30000.0,0.00026981,2]
[364815143,1749250240361,-150.0,0.00027034,2]
[364815145,1749250240371,-172.09,0.00027086,2]
[364815147,1749250240380,-150.0,0.0002709,2]
[364815149,1749250240389,-165.72,0.00027091,2]
[364815151,1749250240398,-150.0,0.00027153,2]
[364815153,1749250240408,-150.0,0.0002718,2]
[364815155,1749250240416,-455.0,0.00027185,7]
[364815157,1749250240426,-466.0,0.00027185,7]
[364815159,1749250240436,-1000.0,0.00027297,2]
[364815161,1749250240445,-5000.0,0.00027297,2]
[364815162,1749250240454,-2500.0,0.00027297,2]
[364815164,1749250240467,-152.39539604,0.00027297,2]
[364815166,1749250240477,-536.3991012,0.00027314,16]
[364815168,1749250240486,-150.0,0.00027324,2]
[364815170,1749250240495,-215.0,0.00027348,2]
[364815172,1749250240504,-150.0,0.00027367,2]
[364815174,1749250240514,-500.0,0.00027373,2]
[364815176,1749250240523,-81577.9279172,0.00027387,2]
[364815178,1749250240533,-1840.62,0.00027387,2]
[364815180,1749250240543,-217.92,0.00027392,2]
[364815182,1749250240552,-500.0,0.00027396,2]
[364815184,1749250240562,-500.0,0.00027396,2]
[364815186,1749250240571,-186.206815,0.00027396,2]
[364815188,1749250240581,-422.26003028,0.00027396,2]
[364815190,1749250240590,-480.0,0.00027397,5]
[364815192,1749250240599,-160.0,0.00027397,5]
[364815194,1749250240608,-480.0,0.00027397,5]
[364815196,1749250240617,-480.0,0.00027397,5]
[364815198,1749250240626,-594.11890708,0.00027397,5]
[364815200,1749250240636,-261.96860711,0.00027397,5]
[364815202,1749250240645,-426.97839042,0.00027397,5]
[364815203,1749250240654,-153.42512885,0.00027397,5]
[364815204,1749250240663,-480.0,0.00027397,5]
[364815205,1749250240672,-483.04083722,0.00027397,5]
[364815206,1749250240681,-420.0,0.00027397,5]
[364815207,1749250240690,-482.88195491,0.00027397,5]
[364815208,1749250240699,-486.05855618,0.00027397,5]
[364815209,1749250240710,-424.8448695,0.00027397,5]
[364815210,1749250240719,-504.14501086,0.00027397,5]
[364815211,1749250240728,-480.0,0.00027397,5]
[364815212,1749250240737,-480.0,0.00027397,5]
[364815214,1749250240747,-502.79349154,0.00027397,5]
[364815216,1749250240757,-480.0,0.00027397,5]
[364815218,1749250240766,-480.0,0.00027397,5]
[364815220,1749250240775,-480.0,0.00027397,5]
[364815222,1749250240784,-480.0,0.00027397,5]
[364815223,1749250240793,-480.0,0.00027397,5]
[364815224,1749250240802,-600.0,0.00027397,30]
[364815225,1749250240812,-501.9987913,0.00027397,5]
[364815226,1749250240821,-480.0,0.00027397,5]
[364815227,1749250240831,-480.0,0.00027397,5]
[364815228,1749250240840,-480.0,0.00027397,5]
[364815229,1749250240849,-480.0,0.00027397,5]
[364815230,1749250240859,-480.0,0.00027397,5]
[364815231,1749250240868,-480.0,0.00027397,5]
[364815232,1749250240878,-480.0,0.00027397,5]
[364815233,1749250240887,-480.0,0.00027397,5]
[364815234,1749250240896,-480.0,0.00027397,5]